bitfinex/quotes_ETHUSD_20250703
["timestamp","ask_amount","ask_price","bid_price","bid_amount"]
[1751555648536,12.90458905,2588.2,2588.1,0.02]
[1751555648861,42.90208905,2588.2,2588.1,0.02]
[1751555649049,44.99308905,2588.2,2588.1,0.02]
[1751555649365,48.84198153,2588.2,2588.1,0.02]
[1751555649873,38.52698153,2588.2,2588.1,0.02]
[1751555650078,9.284,2588.5,2588.1,0.02]
[1751555650245,0.1928,2588.4,2588.1,0.02]
[1751555650432,9.284,2588.5,2588.2,4.66736678]
[1751555650637,8.223,2588.6,2588.4,3.86330362]
[1751555650638,0.1928,2588.6,2588.4,3.86330362]
[1751555651053,0.1928,2588.6,2588.5,3.86324125]
[1751555651261,0.1928,2588.9,2588.8,3.86279357]
[1751555651564,0.1928,2589.1,2588.8,3.86279357]
[1751555651747,0.1928,2589.1,2588.9,3.86260568]
[1751555651943,0.1928,2589.1,2589.0,3.86249517]
[1751555652263,2.093,2589.3,2589.0,4.05517043]
[1751555652433,2.093,2589.3,2589.0,0.1928]
[1751555652632,2.093,2589.3,2589.1,3.8622304]
[1751555652841,10.45339546,2589.3,2589.0,4.05519262]
[1751555653046,10.45339546,2589.3,2589.1,3.8623397]
[1751555653266,10.45339546,2589.3,2588.7,0.8126]
[1751555653465,10.45339546,2589.3,2588.8,4.05548617]
[1751555653466,12.59097501,2589.3,2588.8,4.05548617]
[1751555653656,12.59097501,2589.3,2588.9,3.86257327]
[1751555653852,10.64619546,2589.3,2588.9,3.86263168]
[1751555654059,2.2858,2589.3,2588.9,3.86263168]
[1751555654260,2.2858,2589.3,2588.8,0.23142793]
[1751555654461,0.7744,2589.5,2589.2,3.86219681]
[1751555654662,8.219,2589.6,2589.4,3.86181709]
[1751555654862,8.4118,2589.6,2589.3,3.86197903]
[1751555655177,8.4118,2589.6,2589.2,3.86219681]
[1751555655178,8.4118,2589.6,2589.2,3.86209814]
[1751555655358,0.1928,2589.6,2589.3,3.86193176]
[1751555655755,0.1928,2589.6,2589.5,3.86174937]
[1751555656474,0.1928,2589.6,2589.4,3.86183535]
[1751555656769,2.8449,2589.9,2589.5,3.86174937]
[1751555656938,0.1928,2589.8,2589.5,3.86174937]
[1751555657137,0.1928,2589.8,2589.3,0.1928]
[1751555657334,0.1928,2589.6,2589.2,4.0548901]
[1751555657643,0.1928,2589.6,2589.3,3.86203827]
[1751555658169,0.1928,2589.6,2589.4,3.86188972]
[1751555658336,0.1928,2589.6,2589.5,3.86174937]
[1751555658862,0.1928,2589.6,2589.4,3.86188088]
[1751555659061,0.1928,2589.6,2589.2,0.1928]
[1751555659268,0.1928,2589.6,2589.4,3.86182562]
[1751555659578,0.1928,2589.6,2589.3,3.86196833]
[1751555659874,33.86166709,2589.6,2589.0,3.86243045]
[1751555660040,0.1928,2589.4,2589.0,3.86249517]
[1751555660244,0.1928,2589.4,2589.2,3.8621897]
[1751555661388,0.1928,2589.4,2589.1,3.86228128]
[1751555663072,1.0232,2589.4,2589.0,0.03862495]
[1751555663398,8.211,2589.6,2589.0,0.03862495]
[1751555663399,8.211,2589.6,2589.4,3.86182483]
[1751555663993,8.211,2589.6,2589.2,0.1928]
[1751555664193,30.0,2589.5,2589.0,0.7947]
[1751555664495,1.03318,2589.6,2589.4,3.86179443]
[1751555664998,8.209,2589.7,2589.5,3.86174937]
[1751555665392,0.1928,2589.8,2589.6,3.86160024]
[1751555665594,10.1928,2589.8,2589.6,3.86153585]
[1751555665782,0.1928,2589.8,2589.3,0.1928]
[1751555666101,0.1928,2589.8,2589.5,3.86163629]
[1751555666275,0.1928,2589.8,2589.7,3.86145113]
[1751555666475,0.1928,2589.8,2589.4,3.90048922]
[1751555666703,0.1928,2589.8,2589.5,3.86166459]
[1751555666879,0.1928,2589.8,2589.6,3.86158505]
[1751555667582,0.1928,2589.8,2589.5,3.86166334]
[1751555668076,0.1928,2589.8,2589.6,3.86158831]
[1751555668398,0.1928,2589.8,2589.6,3.86153923]
[1751555668787,0.1928,2589.8,2589.5,3.86166314]
[1751555668985,0.1928,2589.8,2589.3,4.05479023]
[1751555668986,0.1928,2589.8,2589.6,3.8615871]
[1751555669192,0.1928,2589.8,2589.7,3.86145113]
[1751555669690,8.205,2589.9,2589.8,3.86130203]
[1751555670094,8.205,2589.9,2589.7,3.86140107]
[1751555670402,8.4078,2590.0,2589.5,4.85237201]
[1751555670703,10.30837849,2590.0,2589.6,3.86159098]
[1751555671881,14.16938527,2590.0,2589.5,4.05446809]
[1751555672102,10.30837849,2590.0,2589.6,3.86159696]
[1751555673405,10.30837849,2590.0,2589.7,3.86144889]
[1751555673571,10.30837849,2590.0,2589.6,3.86153183]
[1751555673772,2.10337849,2590.0,2589.5,0.1928]
[1751555674014,8.202,2589.9,2589.8,3.86126328]
[1751555674200,8.202,2589.9,2589.6,3.86157965]
[1751555674507,0.2028,2590.0,2589.6,0.038616]
[1751555674671,8.4038,2590.0,2589.8,3.86123837]
[1751555675290,8.4038,2590.0,2589.6,0.038616]
[1751555675709,8.4038,2590.0,2589.8,3.86123032]
[1751555676082,8.4028,2590.0,2589.8,3.86123032]
[1751555676284,8.4028,2590.0,2589.7,3.86136681]
[1751555676478,0.2028,2590.0,2589.7,3.86136681]
[1751555676782,0.2028,2590.0,2589.8,3.86130062]
[1751555676983,0.2028,2590.0,2589.7,3.86138484]
[1751555677198,0.2028,2590.0,2589.8,3.86126207]
[1751555677591,0.01,2590.0,2589.9,3.86115294]
[1751555677904,0.01,2590.0,2589.8,3.8612258]
[1751555678291,0.01,2590.0,2589.9,3.86115294]
[1751555678498,0.01,2590.0,2589.7,4.05419641]
[1751555678499,0.01,2590.0,2589.8,3.86121506]
[1751555679115,0.01,2590.0,2589.9,3.86115294]
[1751555679649,0.01,2590.0,2589.8,3.86124087]
[1751555679821,0.01,2590.0,2589.7,0.1928]
[1751555679975,8.36291848,2589.9,2589.7,0.1928]
[1751555680317,8.36291848,2589.9,2589.7,4.05423094]
[1751555680670,8.36291848,2589.9,2589.3,0.7571]
[1751555680671,13.160146,2589.9,2589.4,3.86181904]
[1751555680902,8.36291848,2589.7,2589.4,4.05461904]
[1751555681109,8.36291848,2589.5,2589.4,4.05461904]
[1751555681714,8.36291848,2589.7,2589.5,3.86169278]
[1751555683124,0.7956,2589.6,2588.9,0.02]
[1751555683278,8.36291848,2589.0,2588.9,0.02]
[1751555684907,43.9609167,2589.0,2588.9,0.02]
[1751555685145,44.31756014,2589.0,2588.9,0.02]
[1751555685957,49.01600172,2589.0,2588.9,0.02]
[1751555686437,12.36614649,2589.0,2588.9,0.02]
[1751555686625,1.73550305,2589.0,2588.9,0.02]
[1751555686942,9.0148,2589.0,2588.9,0.02]
[1751555687343,9.37064672,2589.0,2588.9,0.02]
[1751555687563,0.1928,2589.1,2588.9,0.02]
[1751555687722,8.191,2589.0,2588.9,0.02]
[1751555689151,8.192,2589.0,2588.9,0.02]
[1751555690042,0.1928,2589.1,2588.9,0.02]
[1751555691229,4.05517149,2589.1,2588.9,0.02]
[1751555691430,0.1928,2589.1,2588.9,0.02]
[1751555691950,4.0551983,2589.1,2588.9,0.02]
[1751555692319,0.1928,2589.1,2588.9,0.02]
[1751555693330,4.05517654,2589.1,2588.9,0.02]
[1751555693651,3.86249517,2589.0,2588.9,0.02]
[1751555693840,33.86249517,2589.0,2588.9,0.02]
[1751555694640,30.0,2589.0,2588.9,0.02]
[1751555694841,33.86249517,2589.0,2588.9,0.02]
[1751555695055,37.71138765,2589.0,2588.9,0.02]
[1751555695421,45.89838765,2589.0,2588.9,0.02]
[1751555695779,0.76,2588.5,2588.1,3.883827]
[1751555696065,0.1928,2588.4,2588.2,3.86367618]
[1751555697061,0.1928,2588.4,2588.1,3.88378033]
[1751555697435,0.1928,2588.4,2588.2,3.86358473]
[1751555697834,4.05621341,2588.4,2588.1,0.02]
[1751555698040,0.1928,2588.4,2588.1,0.02]
[1751555698570,0.1928,2588.4,2588.1,3.88380059]
[1751555698869,0.1928,2588.4,2588.2,3.86364448]
[1751555699039,0.1928,2588.4,2588.1,3.8837599]
[1751555699250,0.1928,2588.4,2588.2,3.86361262]
[1751555699868,0.1928,2588.4,2588.1,3.88376851]
[1751555700969,0.1928,2588.4,2588.2,3.86366096]
[1751555701159,0.7805,2588.9,2588.5,3.8631101]
[1751555701476,0.7805,2588.9,2588.5,3.86324125]
[1751555701477,0.1928,2588.9,2588.5,3.86324125]
[1751555701626,0.1928,2588.9,2588.6,3.86308482]
[1751555701834,0.1928,2588.9,2588.5,4.05598562]
[1751555702248,0.1928,2588.9,2588.6,3.86307655]
[1751555702449,1.09833,2588.9,2588.4,3.86330472]
[1751555702671,0.1928,2588.7,2588.3,4.62021053]
[1751555702979,30.0,2588.5,2588.2,3.8635723]
[1751555703297,0.1928,2588.5,2588.1,0.2128]
[1751555703582,0.1928,2588.5,2588.3,3.86352702]
[1751555703779,0.1928,2588.5,2588.2,3.86361001]
[1751555704572,0.1928,2588.5,2588.4,3.86339051]
[1751555705169,0.1928,2588.5,2588.3,3.86349204]
[1751555705338,0.1928,2588.5,2588.4,3.86339051]
[1751555706569,0.1928,2588.5,2588.0,3.88396271]
[1751555706570,34.64303833,2588.1,2588.0,0.02]
[1751555706734,34.62809248,2588.1,2588.0,0.02]
[1751555706939,8.49193081,2588.1,2588.0,0.02]
[1751555707152,10.7792,2588.1,2588.0,0.02]
[1751555707344,30.7792,2588.1,2588.0,0.02]
[1751555707551,34.64303833,2588.1,2588.0,0.02]
[1751555709070,0.7792,2588.4,2588.0,0.02]
[1751555709272,0.7792,2588.4,2588.0,3.88389241]
[1751555709442,0.7792,2588.4,2588.0,0.02]
[1751555709443,30.0,2588.3,2588.0,0.02]
[1751555709641,3.86370682,2588.2,2588.0,0.02]
[1751555710455,13.86376384,2588.2,2588.0,0.02]
[1751555710652,40.0,2588.2,2588.0,0.02]
[1751555710889,1.16693617,2588.4,2588.0,3.88388712]
[1751555711189,5.03042544,2588.4,2588.0,0.02]
[1751555711390,15.67274239,2588.3,2588.0,0.02]
[1751555711586,1.80917855,2588.3,2588.0,0.02]
[1751555711899,1.80917855,2588.3,2588.0,1.02]
[1751555711900,3.86383833,2588.1,2588.0,1.02]
[1751555712068,47.72579839,2588.1,2588.0,1.02]
[1751555712404,1.80917855,2588.3,2588.0,1.02]
[1751555712683,4.66375376,2588.6,2588.2,0.7516]
[1751555712893,30.0,2588.5,2588.2,0.7516]
[1751555713096,0.8006,2588.6,2588.2,0.7516]
[1751555713262,40.0,2588.8,2588.2,4.65387285]
[1751555713583,10.0,2588.7,2588.3,3.86352603]
[1751555713750,40.0,2588.7,2588.3,3.86352603]
[1751555713953,30.0,2588.7,2588.3,3.86352603]
[1751555714180,3.8630121,2588.7,2588.2,4.61520318]
[1751555714359,3.86315661,2588.6,2588.2,0.7516]
[1751555714566,33.86324991,2588.5,2588.2,0.7516]
[1751555714873,30.0,2588.4,2588.1,0.02]
[1751555715389,30.0,2588.3,2588.1,0.02]
[1751555715585,3.86355761,2588.3,2588.1,0.02]
[1751555715801,3.86368905,2588.2,2588.1,0.02]
[1751555716180,4.71386577,2588.3,2588.1,0.02]
[1751555716484,0.1928,2588.2,2588.1,0.02]
[1751555716964,10.1928,2588.2,2588.1,0.02]
[1751555717376,4.05648905,2588.2,2588.1,0.02]
[1751555717581,48.07243459,2588.2,2588.1,0.02]
[1751555722215,44.20874554,2588.2,2588.1,0.02]
[1751555722692,0.1928,2588.2,2588.1,3.88383833]
[1751555722894,0.35499509,2588.5,2588.3,3.86346258]
[1751555723083,0.1928,2588.5,2588.2,3.86368905]
[1751555723279,0.1928,2588.5,2588.4,3.86339051]
[1751555723798,30.0,2588.4,2588.1,3.88379939]
[1751555724902,0.1928,2588.5,2588.2,3.86362558]
[1751555725212,0.1928,2588.5,2588.2,3.86368508]
[1751555725415,0.1928,2588.5,2588.3,3.86353363]
[1751555725918,0.1928,2588.5,2588.2,3.86361824]
[1751555726584,0.1928,2588.5,2588.1,3.88375186]
[1751555726786,0.1928,2588.5,2588.1,3.92241357]
[1751555726976,0.1928,2588.5,2588.2,3.86362116]
[1751555727193,0.1928,2588.5,2588.2,3.86362047]
[1751555727395,0.1928,2588.5,2588.3,3.86344138]
[1751555728486,33.86368905,2588.2,2588.1,0.02]
[1751555728688,52.63269216,2588.2,2588.1,0.02]
[1751555728906,52.98793104,2588.2,2588.1,0.02]
[1751555729109,3.86383833,2588.1,2588.0,1.02]
[1751555729292,35.95695738,2588.1,2588.0,1.02]
[1751555729504,3.86398763,2588.0,2587.9,0.02]
[1751555729717,38.26091899,2588.0,2587.9,0.02]
[1751555730021,39.99876616,2588.0,2587.9,0.02]
[1751555730211,4.69321399,2587.8,2587.6,0.02]
[1751555730522,47.28103453,2587.7,2587.6,0.02]
[1751555730696,48.18970356,2587.7,2587.6,0.02]
[1751555730897,52.03859604,2587.7,2587.6,0.02]
[1751555731300,48.17416045,2587.7,2587.6,0.02]
[1751555731605,0.90866903,2587.7,2587.6,3.88458494]
[1751555731805,0.1928,2588.1,2587.7,0.8319]
[1751555732024,0.1928,2588.1,2588.0,3.86398763]
[1751555733121,0.1928,2588.1,2587.9,3.86406407]
[1751555733310,0.1928,2588.1,2587.8,3.8642026]
[1751555733629,0.1928,2588.1,2587.9,3.86410972]
[1751555733806,0.1928,2588.1,2588.0,3.86398763]
[1751555734204,0.1928,2588.1,2587.7,1.0247]
[1751555734394,13.25416006,2588.1,2587.7,4.05715905]
[1751555734599,13.25416006,2588.1,2587.8,3.86421672]
[1751555735131,13.25416006,2588.1,2587.8,3.8642833]
[1751555736932,13.25416006,2588.1,2587.9,3.86410439]
[1751555737134,13.25416006,2588.1,2588.0,3.86398763]
[1751555737332,0.1928,2588.1,2587.9,3.86406474]
[1751555737505,0.1928,2588.1,2587.8,3.86423407]
[1751555738526,0.1928,2588.1,2587.9,3.86412136]
[1751555738707,0.1928,2588.1,2588.0,3.86398763]
[1751555739110,0.1928,2588.1,2587.8,3.86420868]
[1751555739511,0.1928,2588.1,2587.7,4.05717573]
[1751555739830,0.1928,2588.1,2587.8,3.86421675]
[1751555740496,0.1928,2588.1,2587.7,4.05715863]
[1751555740697,0.1928,2588.1,2587.8,3.86428535]
[1751555740928,0.1928,2588.1,2587.7,0.1928]
[1751555741109,4.05665417,2588.1,2587.7,0.1928]
[1751555741496,3.86407377,2588.0,2587.6,0.02]
[1751555741693,10.1928,2588.0,2587.6,3.88455314]
[1751555741933,33.86443559,2587.7,2587.6,0.02]
[1751555742107,34.05723559,2587.7,2587.6,0.02]
[1751555742501,36.12312699,2587.7,2587.6,0.02]
[1751555743032,34.67568243,2587.2,2587.1,0.02]
[1751555743274,4.05813183,2587.1,2587.0,0.02]
[1751555743559,3.86590986,2586.8,2586.1,0.02]
[1751555743699,33.86667697,2586.2,2586.1,0.02]
[1751555745035,34.68727697,2586.2,2586.1,1e-08]
[1751555745203,34.68727697,2586.2,2584.6,0.8265]
[1751555745204,2.2773603,2586.2,2584.6,0.8265]
[1751555745404,30.0,2585.6,2585.1,3.88829733]
[1751555745599,30.0,2585.6,2585.1,0.02]
[1751555745827,3.86760122,2585.6,2585.1,0.02]
[1751555746045,40.0,2585.5,2585.1,0.02]
[1751555746227,3.86760122,2585.6,2585.1,0.02]
[1751555746228,30.0,2585.6,2585.1,0.02]
[1751555746511,30.0,2585.5,2585.1,3.88829533]
[1751555746713,13.06136006,2585.7,2585.1,0.02]
[1751555746911,30.0,2586.0,2585.5,3.8676119]
[1751555747154,30.0,2586.0,2585.1,0.02]
[1751555747155,0.22773603,2586.1,2585.2,0.8265]
[1751555747303,30.0,2586.4,2586.1,3.86672404]
[1751555747509,3.08206,2586.3,2586.1,3.86672404]
[1751555747706,3.08206,2586.3,2585.3,4.41798101]
[1751555747707,40.0,2586.4,2585.8,0.03867275]
[1751555747901,40.0,2586.4,2585.3,0.55]
[1751555747902,30.0,2586.4,2585.3,0.55]
[1751555748107,30.0,2586.4,2585.8,3.86715653]
[1751555748108,33.86652573,2586.4,2585.8,3.86715653]
[1751555748303,40.0,2586.4,2586.0,3.86686385]
[1751555748530,40.0,2586.4,2585.6,3.86757425]
[1751555748531,30.0,2586.4,2585.6,3.86757425]
[1751555748727,30.0,2586.4,2585.9,3.86705427]
[1751555749050,30.0,2586.4,2586.1,3.86682017]
[1751555749208,33.86647562,2586.4,2585.9,3.86702525]
[1751555749557,30.0,2586.4,2586.0,3.86697245]
[1751555749838,30.0,2586.4,2585.9,3.86704757]
[1751555750142,30.0,2586.4,2585.8,3.86723743]
[1751555750143,12.07039672,2586.4,2586.1,3.86671655]
[1751555750351,40.0,2586.4,2586.2,3.86657663]
[1751555750508,30.0,2586.4,2586.1,3.86672856]
[1751555750712,30.0,2586.4,2586.2,3.86654715]
[1751555750912,3.86617274,2586.6,2586.1,3.86675288]
[1751555751139,30.0,2586.5,2585.5,0.8105]
[1751555751455,30.0,2586.3,2585.9,3.86711971]
[1751555751952,30.0,2586.2,2585.8,3.86720423]
[1751555752124,30.0,2586.1,2585.6,3.86744968]
[1751555752308,30.0,2585.9,2585.5,3.86765247]
[1751555753122,30.0,2586.0,2585.4,3.86782507]
[1751555753325,30.0,2585.9,2585.6,3.86755044]
[1751555753520,3.8673289,2585.8,2585.3,3.86790632]
[1751555753734,30.0,2585.7,2585.1,0.02]
[1751555753932,30.0,2585.7,2585.2,3.86816815]
[1751555754110,30.0,2585.3,2585.1,0.02]
[1751555754312,0.7876,2585.6,2585.2,3.86804164]
[1751555754509,3.86657944,2586.3,2585.2,3.86804164]
[1751555754510,2.07601165,2586.0,2585.6,3.86744479]
[1751555754912,2.07601165,2586.0,2585.5,3.86769642]
[1751555754913,40.0,2585.9,2585.1,0.02]
[1751555755154,40.0,2585.6,2585.2,0.1928]
[1751555755445,30.0,2585.6,2585.4,3.86782077]
[1751555755644,30.0,2585.6,2585.2,4.06091869]
[1751555755645,30.0,2585.6,2585.3,3.86795512]
[1751555755846,31.21984966,2585.6,2585.1,0.02]
[1751555756060,0.1928,2585.4,2585.1,3.88830652]
[1751555756267,0.1928,2585.4,2585.1,0.02]
[1751555756562,0.1928,2585.7,2585.4,3.86775687]
[1751555756764,30.0,2585.9,2585.4,3.86775687]
[1751555756765,30.0,2585.8,2585.6,3.86745839]
[1751555757066,0.1928,2585.9,2585.7,3.86742468]
[1751555757265,40.0,2586.3,2585.9,3.86710408]
[1751555757434,40.0,2586.1,2586.0,3.86697602]
[1751555757630,0.1928,2586.2,2586.1,3.86682649]
[1751555757941,0.1928,2586.3,2586.1,3.86682649]
[1751555758147,40.0,2585.9,2585.5,3.86769569]
[1751555758333,30.1928,2585.9,2585.5,3.86763636]
[1751555758532,0.1928,2585.7,2585.5,3.86763636]
[1751555758733,0.1928,2585.7,2585.4,3.86779791]
[1751555758957,30.0,2585.6,2585.4,3.86779791]
[1751555759135,33.40600776,2585.6,2585.2,4.06093142]
[1751555759458,0.1928,2585.5,2585.3,3.86788104]
[1751555759659,0.1928,2585.5,2585.2,3.86808858]
[1751555759830,0.1928,2585.5,2585.3,3.8679445]
[1751555760239,0.1928,2585.5,2585.1,0.8289]
[1751555760533,0.1928,2585.5,2585.1,0.02]
[1751555760742,3.86809984,2585.3,2585.1,0.02]
[1751555760923,0.1928,2585.2,2585.1,0.02]
[1751555761423,0.1928,2585.2,2585.1,3.8883223]
[1751555762172,0.1928,2585.4,2585.3,3.8680195]
[1751555762355,0.1928,2585.4,2585.1,0.02]
[1751555762555,0.1928,2585.4,2585.1,3.88824033]
[1751555762864,0.1928,2585.2,2585.1,0.02]
[1751555763042,0.1928,2585.2,2585.1,3.8883223]
[1751555763371,0.1928,2585.2,2585.1,0.02]
[1751555763552,0.1928,2585.2,2585.1,3.8883223]
[1751555763867,0.1928,2585.2,2585.1,0.02]
[1751555764069,0.1928,2585.2,2585.1,3.8883223]
[1751555765134,30.0,2585.6,2585.4,3.86787344]
[1751555765336,0.1928,2585.4,2585.2,3.86811046]
[1751555765531,30.0,2585.3,2585.1,3.88823687]
[1751555765737,0.1928,2585.4,2585.3,3.86802305]
[1751555765973,0.8001,2585.7,2585.5,3.86764837]
[1751555766271,0.8001,2585.7,2585.1,0.8497]
[1751555766272,33.86804876,2585.3,2585.1,0.02]
[1751555766459,13.38680488,2585.2,2585.1,0.02]
[1751555766768,0.1928,2585.2,2585.1,0.02]
[1751555767170,0.1928,2585.2,2585.1,3.8883223]
[1751555767573,0.831,2586.4,2585.9,3.86712556]
[1751555767734,3.86600862,2586.7,2585.8,0.7928]
[1751555767735,0.831,2586.7,2585.8,0.7928]
[1751555767939,0.831,2586.7,2586.5,3.86621262]
[1751555767940,0.1928,2586.6,2586.5,3.86621262]
[1751555768384,0.788,2587.1,2586.4,3.90501824]
[1751555768679,1.0788,2587.0,2586.9,3.86563067]
[1751555768976,0.1928,2587.1,2586.9,3.86561995]
[1751555769350,0.1928,2587.1,2587.0,3.86548125]
[1751555770272,0.7509,2587.6,2587.0,3.86548125]
[1751555770440,0.1928,2587.4,2587.1,3.86526132]
[1751555770640,0.1928,2587.4,2586.9,4.05840225]
[1751555770864,0.1928,2587.4,2587.1,3.86530128]
[1751555771170,0.1928,2587.4,2587.3,3.86503304]
[1751555771341,0.1928,2587.6,2587.2,0.1928]
[1751555771542,0.1928,2587.6,2587.3,3.86490962]
[1751555771777,30.0,2587.5,2587.2,4.05785898]
[1751555772276,30.0,2587.5,2587.2,0.1928]
[1751555772436,3.86510562,2587.3,2587.0,0.1928]
[1751555772636,0.59859056,2587.2,2586.8,4.05855893]
[1751555772874,0.1928,2587.2,2586.9,3.86548352]
[1751555773179,4.87309071,2587.2,2586.8,0.1928]
[1751555773372,30.0,2587.1,2586.8,0.1928]
[1751555774442,3.86547837,2587.1,2586.5,3.86615612]
[1751555774645,0.1928,2587.0,2586.6,3.86605188]
[1751555774940,0.1928,2587.0,2586.5,0.23146228]
[1751555775140,0.1928,2587.2,2586.9,3.86554974]
[1751555775785,0.1928,2587.2,2586.8,0.1928]
[1751555775945,0.1928,2587.2,2586.8,0.9731]
[1751555776385,10.0,2587.7,2587.2,3.86515791]
[1751555776386,3.86453902,2587.7,2587.2,3.86515791]
[1751555776554,0.1928,2587.4,2587.2,3.86515791]
[1751555776758,0.1928,2587.4,2587.1,3.865264]
[1751555777058,0.1928,2587.4,2587.1,3.86525623]
[1751555777391,0.1928,2587.4,2587.2,3.86516863]
[1751555777589,30.0,2587.7,2587.2,3.86512318]
[1751555777799,0.1928,2587.7,2587.5,3.86461842]
[1751555777962,0.1928,2587.7,2587.4,3.86481309]
[1751555778165,0.1928,2587.7,2587.5,3.86467699]
[1751555778502,30.0,2587.7,2587.4,0.1928]
[1751555778703,3.01928,2587.6,2587.1,3.86525657]
[1751555778995,3.01928,2587.6,2587.2,0.1928]
[1751555778996,30.0,2587.6,2587.2,0.1928]
[1751555779299,3.86459689,2587.6,2587.2,0.1928]
[1751555779499,3.86476452,2587.5,2587.0,3.90403283]
[1751555779680,34.05761236,2587.5,2587.0,4.09688008]
[1751555779997,0.1928,2587.5,2587.0,4.09689343]
[1751555780301,4.05758707,2587.5,2587.0,4.09689343]
[1751555780485,3.86511064,2587.3,2587.0,0.1928]
[1751555780792,0.1928,2587.3,2586.9,3.86554059]
[1751555781169,4.05786598,2587.3,2586.8,0.9731]
[1751555781368,30.0,2587.1,2586.8,0.1928]
[1751555781581,4.05789712,2587.3,2586.8,0.1928]
[1751555781760,0.1928,2587.3,2586.9,3.8655648]
[1751555781955,0.1928,2587.3,2586.8,4.05851539]
[1751555782155,0.1928,2587.3,2586.8,0.1928]
[1751555782156,14.05784544,2587.3,2586.8,0.1928]
[1751555782377,30.0,2587.2,2586.8,0.1928]
[1751555782660,30.0,2587.0,2586.8,0.1928]
[1751555782855,3.86550917,2587.0,2586.8,0.1928]
[1751555783175,10.0,2587.0,2586.8,0.1928]
[1751555783380,30.0,2587.0,2586.8,0.1928]
[1751555783601,30.0,2587.1,2586.8,0.1928]
[1751555783791,30.0,2587.0,2586.8,0.1928]
[1751555783961,3.86563067,2586.9,2586.8,0.1928]
[1751555784161,3.86563067,2586.9,2586.5,0.1928]
[1751555784361,4.05833738,2587.0,2586.5,0.1928]
[1751555784612,3.86571619,2586.9,2586.5,0.1928]
[1751555784773,0.1928,2587.0,2586.5,0.1928]
[1751555784982,3.86511389,2587.3,2586.7,3.86580501]
[1751555785185,3.86526032,2587.2,2586.8,0.0386578]
[1751555785374,3.86526032,2587.2,2586.7,3.86580665]
[1751555785575,3.86526032,2587.2,2586.7,3.90446594]
[1751555785776,3.86526032,2587.2,2586.7,3.86580665]
[1751555785996,30.0,2587.2,2586.3,0.7708]
[1751555786198,3.86564417,2586.9,2586.4,3.86630407]
[1751555786398,9.90477428,2586.8,2586.0,3.86685317]
[1751555786603,0.7832,2586.5,2585.4,0.7708]
[1751555786895,13.86676135,2586.2,2585.7,3.86736061]
[1751555787396,3.86684055,2586.1,2585.6,3.867491]
[1751555787593,13.86675587,2586.2,2585.7,3.86738557]
[1751555788301,0.8089,2586.0,2585.1,0.7757]
[1751555788628,40.0,2585.6,2585.1,0.7757]
[1751555788804,30.0,2585.6,2585.1,0.02]
[1751555788978,30.0,2585.4,2585.1,0.02]
[1751555789987,30.0,2585.8,2585.1,0.02]
[1751555790202,3.0593496,2585.8,2585.1,0.02]
[1751555790499,13.86817267,2585.2,2585.1,0.02]
[1751555790698,43.77294695,2585.2,2585.1,0.02]
[1751555791875,39.90477428,2585.2,2585.1,0.02]
[1751555792214,3.8672363,2585.9,2585.1,0.02]
[1751555792215,34.63892528,2585.7,2585.1,0.02]
[1751555792420,40.0,2585.4,2585.1,0.02]
[1751555792622,30.0,2585.4,2585.1,0.02]
[1751555792792,33.86774115,2585.5,2585.1,0.02]
[1751555792995,30.0,2585.4,2585.1,0.02]
[1751555793395,30.0,2585.5,2585.2,3.86810024]
[1751555793718,3.76982749,2585.6,2585.2,3.8680765]
[1751555793719,30.0,2585.6,2585.2,3.8680765]
[1751555793920,30.0,2585.6,2585.3,3.86801133]
[1751555794129,30.0,2585.9,2585.4,3.86780815]
[1751555794335,40.0,2585.7,2585.3,3.86794851]
[1751555794624,30.0,2585.7,2585.3,3.86794851]
[1751555794825,30.0,2585.7,2585.4,3.86783698]
[1751555796097,30.0,2585.7,2585.5,3.86769781]
[1751555796293,0.1928,2585.8,2585.6,3.86744123]
[1751555796620,3.86675864,2586.2,2585.3,4.06080991]
[1751555796621,10.0,2586.2,2585.7,3.86742468]
[1751555796832,30.1928,2586.1,2585.6,4.06037425]
[1751555797009,30.0,2586.0,2585.7,3.86738921]
[1751555797819,30.0,2586.0,2585.6,4.06029437]
[1751555798125,30.0,2586.0,2585.7,3.8674214]
[1751555798334,30.0,2586.0,2585.6,0.1928]
[1751555798702,1.46491495,2586.2,2585.9,3.86704856]
[1751555798916,0.9754,2586.3,2585.8,4.06007194]
[1751555799201,10.9754,2586.3,2585.9,3.86702887]
[1751555799615,0.9754,2586.3,2586.0,3.86693412]
[1751555800031,0.1928,2586.3,2586.0,3.86693412]
[1751555800232,0.1928,2586.3,2585.9,3.8670897]
[1751555800436,0.1928,2586.3,2585.9,3.86701705]
[1751555800612,0.1928,2586.3,2586.0,3.8669628]
[1751555800929,0.1928,2586.3,2585.8,4.05999236]
[1751555800930,0.1928,2586.3,2585.9,3.8670684]
[1751555801334,0.1928,2586.3,2586.0,3.86689952]
[1751555801901,0.1928,2586.3,2585.8,0.1928]
[1751555802107,0.1928,2586.3,2586.1,3.86669599]
[1751555802310,30.0,2586.5,2586.0,0.86036976]
[1751555802506,30.0,2586.5,2586.1,4.0595666]
[1751555802724,30.0,2586.5,2586.1,4.05955583]
[1751555802929,3.01928,2586.5,2586.1,4.05955583]
[1751555803244,30.0,2586.5,2586.2,3.86665008]
[1751555803441,30.0,2586.5,2586.3,3.86645606]
[1751555803673,30.0,2586.5,2586.2,3.86659078]
[1751555803949,30.0,2586.5,2586.1,4.0595678]
[1751555804146,4.05891871,2586.6,2586.1,4.09823606]
[1751555804321,30.0,2586.5,2586.2,3.86665719]
[1751555804521,30.0,2586.5,2586.1,4.05955278]
[1751555804844,30.0,2586.5,2586.2,3.86665519]
[1751555805262,30.0,2586.5,2586.3,3.86641344]